fUSD/lending_fUSD_20250720
["ID","MTS","AMOUNT","RATE_DAILY","PERIOD"]
[373480943,1753019533077,-163.275317,0.00019945,2]
[373480944,1753019533087,-480.0,0.00019945,2]
[373480945,1753019533096,-480.0,0.00019945,2]
[373480946,1753019533106,-480.0,0.00019945,2]
[373480947,1753019533116,-524.05,0.00019945,2]
[373480948,1753019533125,-480.0,0.00019945,2]
[373480949,1753019533134,-1227.36,0.00019945,2]
[373480950,1753019533144,-747.03,0.00019945,2]
[373480951,1753019533153,-480.0,0.00019945,2]
[373480952,1753019533162,-480.0,0.00019945,2]
[373480953,1753019533171,-837.4,0.00019945,2]
[373480954,1753019533181,-746.83,0.00019945,2]
[373480955,1753019533191,-480.0,0.00019945,2]
[373480956,1753019533201,-6250.65,0.00019945,2]
[373480957,1753019533211,-480.0,0.00019945,2]
[373480958,1753019533220,-403.25,0.00019945,2]
[373480959,1753019533229,-482.81,0.00019945,2]
[373480960,1753019533239,-690.69,0.00019945,2]
[373480961,1753019533247,-480.0,0.00019945,2]
[373480962,1753019533257,-480.0,0.00019945,2]
[373480963,1753019533266,-480.0,0.00019945,2]
[373480964,1753019533275,-480.0,0.00019945,2]
[373480965,1753019533285,-1144.78,0.00019945,2]
[373480966,1753019533294,-569.37,0.00019945,2]
[373480967,1753019533304,-212.72,0.00019945,2]
[373480968,1753019533314,-613.36,0.00019945,2]
[373480969,1753019533323,-421.75,0.00019945,2]
[373480970,1753019533334,-480.0,0.00019945,2]
[373480971,1753019533345,-480.0,0.00019945,2]
[373480972,1753019533355,-480.0,0.00019945,2]
[373480973,1753019533364,-480.0,0.00019945,2]
[373480974,1753019533374,-480.0,0.00019945,2]
[373480975,1753019533384,-689.85,0.00019945,2]
[373480976,1753019533394,-480.0,0.00019945,2]
[373480977,1753019533404,-738.41,0.00019945,2]
[373480978,1753019533413,-480.0,0.00019945,2]
[373480979,1753019533422,-480.0,0.00019945,2]
[373480980,1753019533431,-480.0,0.00019945,2]
[373480981,1753019533441,-668.36,0.00019945,2]
[373480982,1753019533454,-480.0,0.00019945,2]
[373480983,1753019533469,-1143.0,0.00019945,2]
[373480984,1753019533478,-932.37,0.00019945,2]
[373480985,1753019533487,-2985.1,0.00019945,2]
[373480986,1753019533499,-480.0,0.00019945,2]
[373480987,1753019533508,-939.17,0.00019945,2]
[373480988,1753019533518,-480.0,0.00019945,2]
[373480989,1753019533528,-480.0,0.00019945,2]
[373480990,1753019533539,-480.0,0.00019945,2]
[373480991,1753019533549,-1924.75,0.00019945,2]
[373480992,1753019533559,-480.0,0.00019945,2]
[373480993,1753019533569,-527.35,0.00019945,2]
[373480994,1753019533579,-601.3,0.00019945,2]
[373480995,1753019533589,-1898.09,0.00019945,2]
[373480996,1753019533600,-480.0,0.00019945,2]
[373480997,1753019533611,-3502.66,0.00019945,2]
[373480998,1753019533620,-1159.856952,0.00019945,2]
[373480999,1753019533631,-480.0,0.00019945,2]
[373481000,1753019533641,-986.11,0.00019945,2]
[373481001,1753019533651,-480.0,0.00019945,2]
[373481002,1753019533660,-480.0,0.00019945,2]
[373481003,1753019533670,-294.0,0.00019945,2]
[373481004,1753019533680,-480.0,0.00019945,2]
[373481005,1753019533691,-1159.856952,0.00019945,2]
[373481006,1753019533702,-1553.54,0.00019945,2]
[373481007,1753019533712,-480.0,0.00019945,2]
[373481008,1753019533721,-480.0,0.00019945,2]
[373481009,1753019533730,-480.0,0.00019945,2]
[373481010,1753019533739,-415.640667,0.00019945,2]
[373481011,1753019533749,-480.0,0.00019945,2]
[373481012,1753019533759,-1483.86,0.00019945,2]
[373481013,1753019533768,-1070.15,0.00019945,2]
[373481014,1753019533778,-480.0,0.00019945,2]
[373481015,1753019533787,-480.0,0.00019945,2]
[373481016,1753019533797,-415.640667,0.00019945,2]
[373481017,1753019533807,-532.55,0.00019945,2]
[373481018,1753019533817,-558.03,0.00019945,2]
[373481019,1753019533827,-1553.37,0.00019945,2]
[373481020,1753019533838,-480.0,0.00019945,2]
[373481021,1753019533847,-359.28,0.00019945,2]
[373481022,1753019533858,-260.964108,0.00019945,2]
[373481023,1753019533867,-480.0,0.00019945,2]
[373481024,1753019533878,-504.0,0.00019945,2]
[373481025,1753019533887,-260.964108,0.00019945,2]
[373481026,1753019533898,-480.0,0.00019945,2]
[373481027,1753019533907,-480.0,0.00019945,2]
[373481028,1753019533917,-480.0,0.00019945,2]
[373481029,1753019533929,-480.0,0.00019945,2]
[373481030,1753019533938,-1194.6,0.00019945,2]
[373481031,1753019533948,-828.22,0.00019945,2]
[373481032,1753019533958,-151.0,0.00019945,2]
[373481033,1753019533967,-480.0,0.00019945,2]
[373481034,1753019533978,-1041.33,0.00019945,2]
[373481035,1753019533987,-1794.49,0.00019945,2]
[373481036,1753019533997,-1596.73,0.00019945,2]
[373481037,1753019534008,-480.0,0.00019945,2]
[373481038,1753019534019,-480.0,0.00019945,2]
[373481039,1753019534028,-480.0,0.00019945,2]
[373481040,1753019534038,-630.93,0.00019945,2]
[373481041,1753019534048,-4638.84,0.00019945,2]
[373481042,1753019534060,-464.58,0.00019945,2]
[373481043,1753019534071,-480.0,0.00019945,2]
[373481044,1753019534081,-480.0,0.00019945,2]
[373481045,1753019534090,-1777.66,0.00019945,2]
[373481046,1753019534099,-556.83,0.00019945,2]
[373481047,1753019534109,-1897.84,0.00019945,2]
[373481048,1753019534120,-1256.18,0.00019945,2]
[373481049,1753019534130,-2882.58,0.00019945,2]
[373481050,1753019534140,-979.84,0.00019945,2]
[373481051,1753019534150,-480.0,0.00019945,2]
[373481052,1753019534160,-480.0,0.00019945,2]
[373481053,1753019534170,-707.99,0.00019945,2]
[373481054,1753019534179,-150.51,0.00019945,2]
[373481055,1753019534189,-574.55,0.00019945,2]
[373481056,1753019534199,-38134.22,0.00019945,2]
[373481057,1753019534389,-480.0,0.00019945,2]
[373481058,1753019534427,-1106.08,0.00019945,2]
[373481059,1753019534437,-480.0,0.00019945,2]
[373481060,1753019534447,-480.0,0.00019945,2]
[373481061,1753019534460,-480.0,0.00019945,2]
[373481062,1753019534471,-480.0,0.00019945,2]
[373481063,1753019534481,-773.09,0.00019945,2]
[373481064,1753019534492,-480.0,0.00019945,2]
[373481065,1753019534503,-3225.28,0.00019945,2]
[373481066,1753019534512,-2593.99,0.00019945,2]
[373481067,1753019534522,-480.0,0.00019945,2]
[373481068,1753019534532,-10449.6,0.00019945,2]
[373481069,1753019534543,-2698.38,0.00019945,2]
[373481070,1753019534553,-326.69285164,0.00019945,2]
[373481071,1753019534563,-480.0,0.00019945,2]
[373481072,1753019534572,-3171.67,0.00019945,2]
[373481073,1753019534582,-1260.52,0.00019945,2]
[373481074,1753019534592,-256.24,0.00019945,2]
[373481075,1753019534602,-407.8,0.00019945,2]
[373481076,1753019534613,-480.0,0.00019945,2]
[373481077,1753019534625,-267.68956555,0.00019945,2]
[373481078,1753019534635,-480.0,0.00019945,2]
[373481079,1753019534644,-2207.57,0.00019945,2]
[373481080,1753019534654,-4837.24,0.00019945,2]
[373481081,1753019534663,-480.0,0.00019945,2]
[373481082,1753019534672,-1908.42,0.00019945,2]
[373481083,1753019534682,-480.0,0.00019945,2]
[373481084,1753019534692,-480.0,0.00019945,2]
[373481085,1753019534702,-480.0,0.00019945,2]
[373481086,1753019534712,-3925.2,0.00019945,2]
[373481087,1753019534723,-480.0,0.00019945,2]
[373481088,1753019534733,-280.0,0.00019945,2]
[373481089,1753019534743,-1106.38,0.00019945,2]
[373481090,1753019534753,-480.0,0.00019945,2]
[373481091,1753019534763,-480.06,0.00019945,2]
[373481092,1753019534773,-480.0,0.00019945,2]
[373481093,1753019534783,-1549.05,0.00019945,2]
[373481094,1753019534793,-480.0,0.00019945,2]
[373481095,1753019534802,-675.33,0.00019945,2]
[373481096,1753019534812,-480.0,0.00019945,2]
[373481097,1753019534822,-4186.58,0.00019945,2]
[373481098,1753019534831,-920.58,0.00019945,2]
[373481099,1753019534841,-480.0,0.00019945,2]
[373481100,1753019534851,-575.28,0.00019945,2]
[373481101,1753019534861,-480.0,0.00019945,2]
[373481102,1753019534871,-480.0,0.00019945,2]
[373481103,1753019534880,-480.0,0.00019945,2]
[373481104,1753019534890,-480.0,0.00019945,2]
[373481105,1753019534899,-480.0,0.00019945,2]
[373481106,1753019534910,-1601.32,0.00019945,2]
[373481107,1753019534919,-480.0,0.00019945,2]
[373481108,1753019534929,-2912.14,0.00019945,2]
[373481109,1753019534938,-480.0,0.00019945,2]
[373481110,1753019534948,-501.28,0.00019945,2]
[373481111,1753019534957,-480.0,0.00019945,2]
[373481112,1753019534967,-1575.77,0.00019945,2]
[373481113,1753019534978,-1649.03,0.00019945,2]
[373481114,1753019534988,-480.0,0.00019945,2]
[373481115,1753019534999,-480.0,0.00019945,2]
[373481116,1753019535009,-240.0,0.00019945,2]
[373481117,1753019535018,-1937.56,0.00019945,2]
[373481118,1753019535028,-16754.36,0.00019945,2]
[373481119,1753019535038,-1894.53,0.00019945,2]
[373481120,1753019535047,-597.32,0.00019945,2]
[373481121,1753019535057,-480.0,0.00019945,2]
[373481122,1753019535067,-480.0,0.00019945,2]
[373481123,1753019535077,-480.0,0.00019945,2]
[373481124,1753019535086,-296.70317018,0.00019945,2]
[373481125,1753019535095,-480.0,0.00019945,2]
[373481126,1753019535105,-480.0,0.00019945,2]
[373481127,1753019535115,-673.9,0.00019945,2]
[373481128,1753019535124,-480.0,0.00019945,2]
[373481129,1753019535134,-480.0,0.00019945,2]
[373481130,1753019535144,-1244.68,0.00019945,2]
[373481131,1753019535153,-603.87347762,0.00019945,2]
[373481132,1753019535163,-1980.55,0.00019945,2]
[373481133,1753019535172,-480.0,0.00019945,2]
[373481134,1753019535181,-480.0,0.00019945,2]
[373481135,1753019535190,-480.0,0.00019945,2]
[373481136,1753019535200,-480.0,0.00019945,2]
[373481137,1753019535210,-1245.96,0.00019945,2]
[373481138,1753019535220,-6803.71,0.00019945,2]
[373481139,1753019535229,-480.0,0.00019945,2]
[373481140,1753019535239,-480.0,0.00019945,2]
[373481141,1753019535248,-871.27,0.00019945,2]
[373481142,1753019535258,-1360.71,0.00019945,2]
[373481143,1753019535267,-1112.24,0.00019945,2]
[373481144,1753019535276,-480.0,0.00019945,2]
[373481145,1753019535286,-579.47,0.00019945,2]
[373481146,1753019535295,-480.0,0.00019945,2]
[373481147,1753019535305,-2360.18,0.00019945,2]
[373481148,1753019535315,-1144.57,0.00019945,2]
[373481149,1753019535324,-709.9,0.00019945,2]
[373481150,1753019535334,-957.17,0.00019945,2]
[373481151,1753019535347,-3060.53,0.00019945,2]
[373481152,1753019535360,-1099.37,0.00019945,2]
[373481153,1753019535370,-1014.42,0.00019945,2]
[373481154,1753019535379,-1194.62,0.00019945,2]
[373481155,1753019535393,-666.51,0.00019945,2]
[373481156,1753019535402,-480.0,0.00019945,2]
[373481157,1753019535412,-622.5,0.00019945,2]
[373481158,1753019535421,-480.0,0.00019945,2]
[373481159,1753019535430,-4161.68,0.00019945,2]
[373481160,1753019535439,-3588.19,0.00019945,2]
[373481161,1753019535449,-1224.46,0.00019945,2]
[373481162,1753019535459,-480.0,0.00019945,2]
[373481163,1753019535472,-1009.8,0.00019945,2]
[373481164,1753019535481,-759.09,0.00019945,2]
[373481165,1753019535490,-5042.4,0.00019945,2]
[373481166,1753019535499,-480.0,0.00019945,2]
[373481167,1753019535510,-480.0,0.00019945,2]
[373481168,1753019535520,-480.0,0.00019945,2]
[373481169,1753019535530,-985.56034,0.00019945,2]
[373481170,1753019535540,-480.0,0.00019945,2]
[373481171,1753019535550,-892.48,0.00019945,2]
[373481172,1753019535559,-2738.0,0.00019945,2]
[373481173,1753019535568,-1765.61,0.00019945,2]
[373481174,1753019535578,-482.79,0.00019945,2]
[373481175,1753019535587,-480.0,0.00019945,2]
[373481176,1753019535597,-2154.18,0.00019945,2]
[373481177,1753019535608,-985.56034,0.00019945,2]
[373481178,1753019535617,-447.681769,0.00019945,2]
[373481179,1753019535627,-563.37,0.00019945,2]
[373481180,1753019535637,-480.0,0.00019945,2]
[373481181,1753019535647,-480.0,0.00019945,2]
[373481182,1753019535656,-3701.58,0.00019945,2]
[373481183,1753019535666,-447.681769,0.00019945,2]
[373481184,1753019535676,-1317.6,0.00019945,2]
[373481185,1753019535685,-1224.02,0.00019945,2]
[373481186,1753019535694,-1417.35,0.00019945,2]
[373481187,1753019535703,-494.3,0.00019945,2]
[373481188,1753019535711,-2516.48,0.00019945,2]
[373481189,1753019535721,-2675.44,0.00019945,2]
[373481190,1753019535731,-1280.96,0.00019945,2]
[373481191,1753019535741,-1234.43,0.00019945,2]
[373481192,1753019535750,-480.0,0.00019945,2]
[373481193,1753019535759,-1639.88,0.00019945,2]
[373481194,1753019535769,-480.0,0.00019945,2]
[373481195,1753019535779,-480.0,0.00019945,2]
[373481196,1753019535788,-151.0,0.00019945,2]
[373481197,1753019535797,-2371.21,0.00019945,2]
[373481198,1753019535807,-480.0,0.00019945,2]
[373481199,1753019535817,-1781.89,0.00019945,2]
[373481200,1753019535827,-4290.9,0.00019945,2]
[373481201,1753019535836,-673.12,0.00019945,2]
[373481202,1753019535846,-480.0,0.00019945,2]
[373481203,1753019535855,-2112.39,0.00019945,2]
[373481204,1753019535865,-480.0,0.00019945,2]
[373481205,1753019535874,-509.06,0.00019945,2]
[373481206,1753019535883,-578.43,0.00019945,2]
[373481207,1753019535893,-686.73,0.00019945,2]
[373481208,1753019535903,-1034.48,0.00019945,2]
[373481209,1753019535913,-2302.39,0.00019945,2]
[373481210,1753019535922,-1841.2,0.00019945,2]
[373481211,1753019535932,-810.97,0.00019945,2]
[373481212,1753019535942,-480.0,0.00019945,2]
[373481213,1753019535951,-480.0,0.00019945,2]
[373481214,1753019535961,-1656.2,0.00019945,2]
[373481215,1753019535971,-510.33,0.00019945,2]
[373481216,1753019535980,-1875.92,0.00019945,2]
[373481217,1753019535990,-1830.19,0.00019945,2]
[373481218,1753019535999,-1530.02,0.00019945,2]
[373481219,1753019536008,-4600.51,0.00019945,2]
[373481220,1753019536018,-678.36,0.00019945,2]
[373481221,1753019536027,-480.0,0.00019945,2]
[373481222,1753019536037,-1122.81,0.00019945,2]
[373481223,1753019536047,-755.77,0.00019945,2]
[373481224,1753019536056,-1854.23,0.00019945,2]
[373481225,1753019536066,-3405.09,0.00019945,2]
[373481226,1753019536076,-480.0,0.00019945,2]
[373481227,1753019536085,-929.12,0.00019945,2]
[373481228,1753019536095,-638.3,0.0001995,7]
[373481229,1753019536104,-500.0,0.00019973,2]
[373481230,1753019536114,-5290.61194613,0.0001998,2]
[373481231,1753019536123,-231.74,0.0002,2]
[373481232,1753019536132,-151629.18464486,0.0002,2]
[373481233,1753019536141,-92401.86437264,0.0002,2]
[373481234,1753019536151,-304.27510155,0.0002,2]
[373481235,1753019536160,-10000.0,0.0002,2]
[373481236,1753019536169,-1497.39463617,0.0002,2]
[373481237,1753019536178,-5982.48894889,0.0002,2]
[373481238,1753019536188,-7500.0,0.0002,2]
[373481239,1753019536197,-200.0,0.0002,2]
[373481240,1753019536207,-5712.94570377,0.0002,2]
[373481241,1753019536216,-151.0,0.0002,2]
[373481242,1753019536226,-151.0,0.0002,2]
[373481243,1753019536235,-151.0,0.0002,2]
[373481244,1753019536244,-151.0,0.0002,2]
[373481245,1753019536253,-160.86,0.0002,7]
[373481246,1753019536263,-178.669679,0.0002,2]
[373481247,1753019536272,-178.669679,0.0002,2]
[373481248,1753019536282,-323.573606,0.0002,2]
[373481249,1753019536291,-151.0,0.0002,2]
[373481250,1753019536300,-151.0,0.0002,2]
[373481251,1753019536310,-256.103402,0.0002,2]
[373481252,1753019536319,-256.103402,0.0002,2]
[373481253,1753019536328,-434.369889,0.0002,2]
[373481254,1753019536338,-434.369889,0.0002,2]
[373481255,1753019536347,-260.964108,0.0002,2]
[373481256,1753019536357,-260.964108,0.0002,2]
[373481257,1753019536366,-151.0,0.0002,2]
[373481258,1753019536375,-985.56034,0.0002,2]
[373481259,1753019536385,-985.560347,0.0002,2]
[373481260,1753019536395,-4000.0,0.0002,4]
[373481261,1753019536404,-151.0,0.0002,2]
[373481262,1753019536413,-151.76,0.0002,2]
[373481263,1753019536423,-151.76,0.0002,2]
[373481264,1753019536432,-151.76,0.0002,2]
[373481265,1753019536445,-151.76,0.0002,2]
[373481266,1753019536457,-151.76,0.0002,2]
[373481267,1753019536468,-151.76,0.0002,2]
[373481268,1753019536478,-151.76,0.0002,2]
[373481269,1753019536488,-151.76,0.0002,2]
[373481270,1753019536499,-151.76,0.0002,2]
[373481271,1753019536508,-151.76,0.0002,2]
[373481272,1753019536519,-151.76,0.0002,2]
[373481273,1753019536528,-151.76,0.0002,2]
[373481274,1753019536538,-151.76,0.0002,2]
[373481275,1753019536549,-151.76,0.0002,2]
[373481276,1753019536559,-151.76,0.0002,2]
[373481277,1753019536569,-151.76,0.0002,2]
[373481278,1753019536579,-151.76,0.0002,2]
[373481279,1753019536589,-151.76,0.0002,2]
[373481280,1753019536599,-151.76,0.0002,2]
[373481281,1753019536608,-151.76,0.0002,2]
[373481282,1753019536618,-151.76,0.0002,2]
[373481283,1753019536628,-151.76,0.0002,2]
[373481284,1753019536637,-151.76,0.0002,2]
[373481285,1753019536647,-151.76,0.0002,2]
[373481286,1753019536657,-151.76,0.0002,2]
[373481287,1753019536666,-151.76,0.0002,2]
[373481288,1753019536676,-151.76,0.0002,2]
[373481289,1753019536686,-151.76,0.0002,2]
[373481290,1753019536695,-151.76,0.0002,2]
[373481291,1753019536707,-151.76,0.0002,2]
[373481292,1753019536717,-151.76,0.0002,2]
[373481293,1753019536726,-151.76,0.0002,2]
[373481294,1753019536736,-151.76,0.0002,2]
[373481295,1753019536746,-151.76,0.0002,2]
[373481296,1753019536756,-151.76,0.0002,2]
[373481297,1753019536765,-151.76,0.0002,2]
[373481298,1753019536775,-151.76,0.0002,2]
[373481299,1753019536784,-151.76,0.0002,2]
[373481300,1753019536795,-151.76,0.0002,2]
[373481301,1753019536804,-151.76,0.0002,2]
[373481302,1753019536814,-151.76,0.0002,2]
[373481303,1753019536895,-151.76,0.0002,2]
[373481304,1753019536904,-151.76,0.0002,2]
[373481305,1753019536913,-151.76,0.0002,2]
[373481306,1753019536922,-151.76,0.0002,2]
[373481307,1753019536932,-151.76,0.0002,2]
[373481308,1753019536942,-151.76,0.0002,2]
[373481309,1753019536954,-151.76,0.0002,2]
[373481310,1753019536964,-151.76,0.0002,2]
[373481311,1753019536974,-151.76,0.0002,2]
[373481312,1753019536984,-151.76,0.0002,2]
[373481313,1753019536994,-151.76,0.0002,2]
[373481314,1753019537004,-151.76,0.0002,2]
[373481315,1753019537014,-151.76,0.0002,2]
[373481316,1753019537024,-9075.35261936,0.0002001,2]
[373481317,1753019537035,-5005.19359212,0.0002001,2]
[373481318,1753019537045,-221.78,0.00020025,2]
[373481319,1753019537055,-71288.7287153,0.0002004,2]
[373481320,1753019537065,-335.184938,0.00020041,8]
[373481321,1753019537074,-320.0,0.0002005,2]
[373481322,1753019537083,-480.0,0.00020053,2]
[373481323,1753019537093,-493.12,0.00020053,2]
[373481324,1753019537102,-480.0,0.00020053,2]
[373481325,1753019537111,-480.0,0.00020053,2]
[373481326,1753019537121,-151.0,0.00020053,2]
[373481327,1753019537130,-195.22877,0.00020053,2]
[373481328,1753019537139,-294.18083,0.00020053,2]
[373481329,1753019537149,-294.18083,0.00020053,2]
[373481330,1753019537159,-300.0,0.00020053,2]
[373481331,1753019537169,-151.0,0.00020054,2]
[373481332,1753019537178,-151.0,0.00020054,2]
[373481333,1753019537188,-151.0,0.00020054,2]
[373481334,1753019537197,-151.0,0.00020054,2]
[373481335,1753019537207,-152.422035,0.00020054,2]
[373481336,1753019537217,-152.422035,0.00020054,2]
[373481337,1753019537226,-309.984824,0.00020054,2]
[373481338,1753019537235,-309.984824,0.00020054,2]
[373481339,1753019537245,-280.0,0.00020054,2]
[373481340,1753019537256,-151.0,0.00020054,2]
[373481341,1753019537265,-480.0,0.00020054,2]
[373481342,1753019537275,-151.0,0.00020054,2]
[373481343,1753019537285,-241.127206,0.00020054,2]
[373481344,1753019537294,-480.0,0.00020054,2]
[373481345,1753019537303,-440.07568948,0.00020054,2]
[373481346,1753019537312,-480.0,0.00020054,2]
[373481347,1753019537324,-480.0,0.00020054,2]
[373481348,1753019537334,-151.0,0.00020054,2]
[373481349,1753019537344,-480.0,0.00020054,2]
[373481350,1753019537357,-480.0,0.00020054,2]
[373481351,1753019537367,-480.0,0.00020054,2]
[373481352,1753019537376,-480.0,0.00020054,2]
[373481353,1753019537387,-480.0,0.00020054,2]
[373481354,1753019537397,-268.121778,0.00020054,2]
[373481355,1753019537408,-480.0,0.00020054,2]
[373481356,1753019537417,-480.0,0.00020054,2]
[373481357,1753019537426,-207.367706,0.00020054,2]
[373481358,1753019537435,-207.367706,0.00020054,2]
[373481359,1753019537446,-564.08,0.00020054,2]
[373481360,1753019537457,-480.0,0.00020054,2]
[373481361,1753019537471,-480.0,0.00020054,2]
[373481362,1753019537481,-480.0,0.00020054,2]
[373481363,1753019537491,-991.02,0.00020054,2]
[373481364,1753019537501,-151.0,0.00020054,2]
[373481365,1753019537511,-480.0,0.00020054,2]
[373481366,1753019537520,-480.0,0.00020054,2]
[373481367,1753019537529,-573.77,0.00020054,2]
[373481368,1753019537539,-759.54,0.00020054,2]
[373481369,1753019537551,-480.0,0.00020054,2]
[373481370,1753019537561,-1132.31,0.00020054,2]
[373481371,1753019537571,-817.3,0.00020054,2]
[373481372,1753019537580,-5060.37,0.00020054,2]
[373481373,1753019537590,-480.0,0.00020054,2]
[373481374,1753019537599,-561.39,0.00020054,2]
[373481375,1753019537611,-1056.44,0.00020054,2]
[373481376,1753019537621,-561.76,0.00020054,2]
[373481377,1753019537631,-1722.64,0.00020054,2]
[373481378,1753019537640,-1184.53,0.00020054,2]
[373481379,1753019537650,-480.0,0.00020054,2]
[373481380,1753019537659,-708.25,0.00020054,2]
[373481381,1753019537669,-640.15,0.00020054,2]
[373481382,1753019537678,-654.33,0.00020054,2]
[373481383,1753019537687,-525.6,0.00020054,2]
[373481384,1753019537697,-2315.41,0.00020054,2]
[373481385,1753019537707,-480.0,0.00020054,2]
[373481386,1753019537717,-486.88,0.00020054,2]
[373481387,1753019537726,-1036.06,0.00020054,2]
[373481388,1753019537735,-529.02,0.00020054,2]
[373481389,1753019537745,-1025.76,0.00020054,2]
[373481390,1753019537755,-480.0,0.00020054,2]
[373481391,1753019537764,-573.81,0.00020054,2]
[373481392,1753019537774,-802.35,0.00020054,2]
[373481393,1753019537783,-480.0,0.00020054,2]
[373481394,1753019537792,-480.0,0.00020054,2]
[373481395,1753019537802,-546.98334633,0.00020054,2]
[373481396,1753019537811,-480.0,0.00020054,2]
[373481397,1753019537821,-619.12,0.00020054,2]
[373481398,1753019537831,-480.0,0.00020054,2]
[373481399,1753019537840,-480.0,0.00020054,2]
[373481400,1753019537850,-480.0,0.00020054,2]
[373481401,1753019537860,-933.84,0.00020054,2]
[373481402,1753019537870,-1899.42,0.00020054,2]
[373481403,1753019537879,-1365.37,0.00020054,2]
[373481404,1753019537890,-480.0,0.00020054,2]
[373481405,1753019537900,-480.0,0.00020054,2]
[373481406,1753019537909,-480.0,0.00020054,2]
[373481407,1753019537920,-643.56,0.00020054,2]
[373481408,1753019537930,-480.0,0.00020054,2]
[373481409,1753019537940,-480.0,0.00020054,2]
[373481410,1753019537951,-480.0,0.00020054,2]
[373481411,1753019537961,-480.0,0.00020054,2]
[373481412,1753019537970,-491.14,0.00020054,2]
[373481413,1753019537980,-513.7,0.00020054,2]
[373481414,1753019537989,-480.0,0.00020054,2]
[373481415,1753019538001,-480.0,0.00020054,2]
[373481416,1753019538010,-742.91,0.00020054,2]
[373481417,1753019538019,-770.53,0.00020054,2]
[373481418,1753019538029,-480.0,0.00020054,2]
[373481419,1753019538039,-480.0,0.00020054,2]
[373481420,1753019538048,-150.0,0.00020054,2]
[373481421,1753019538058,-480.0,0.00020054,2]
[373481422,1753019538067,-480.0,0.00020054,2]
[373481423,1753019538077,-6566.95,0.00020054,2]
[373481424,1753019538086,-703.59,0.00020054,2]
[373481425,1753019538095,-559.29,0.00020054,2]
[373481426,1753019538104,-701.65065045,0.00020054,2]
[373481427,1753019538114,-480.0,0.00020054,2]
[373481428,1753019538123,-480.0,0.00020054,2]
[373481429,1753019538132,-480.0,0.00020054,2]
[373481430,1753019538142,-150.0,0.00020054,2]
[373481431,1753019538151,-619.74,0.00020054,2]
[373481432,1753019538161,-480.0,0.00020054,2]
[373481433,1753019538170,-480.0,0.00020054,2]
[373481434,1753019538180,-507.08,0.00020054,2]
[373481435,1753019538189,-622.75,0.00020054,2]
[373481436,1753019538198,-1865.0558893,0.00020054,2]
[373481437,1753019538208,-652.56,0.00020054,2]
[373481438,1753019538218,-873.97,0.00020054,2]
[373481439,1753019538227,-1133.69,0.00020054,2]
[373481440,1753019538237,-1078.11,0.00020054,2]
[373481441,1753019538247,-2024.83,0.00020054,2]
[373481442,1753019538257,-882.42,0.00020054,2]